[Event "January 9 Late 2024"]
[Site "https://www.chess.com"]
[Date "2024.01.09"]
[Round "9"]
[White "Banerjee, Supratit"]
[Black "Meduri, Aakaash"]
[Result "1-0"]
[Board "104"]
[TimeControl "180+1"]
[WhiteFideId "2410079"]
[BlackFideId "2032252"]
[WhiteElo "2571"]
[BlackElo "2409"]
[WhiteTeam "SCO"]
[BlackTeam "USA"]
[WhiteClock "0:01:02"]
[BlackClock "0:00:00"]

1. e4 {[%clk 0:03:00]}  g6 {[%clk 0:02:57]} 2. d4 {[%clk 0:03:00]}  Bg7 {[%clk 0:02:57]} 3. Nf3 {[%clk 0:03:00]}  d5 {[%clk 0:02:56]} 4. exd5 {[%clk 0:03:01]}  Qxd5 {[%clk 0:02:56]} 5. c4 {[%clk 0:03:01]}  Qd8 {[%clk 0:02:56]} 6. Nc3 {[%clk 0:03:01]}  Nf6 {[%clk 0:02:56]} 7. Be2 {[%clk 0:03:00]}  O-O {[%clk 0:02:57]} 8. O-O {[%clk 0:03:00]}  c5 {[%clk 0:02:54]} 9. d5 {[%clk 0:02:59]}  e6 {[%clk 0:02:53]} 10. Bg5 {[%clk 0:02:59]}  exd5 {[%clk 0:02:46]} 11. Nxd5 {[%clk 0:02:58]}  Be6 {[%clk 0:02:46]} 12. Nxf6+ {[%clk 0:02:53]}  Bxf6 {[%clk 0:02:46]} 13. Bh6 {[%clk 0:02:53]}  Re8 {[%clk 0:02:36]} 14. Qb3 {[%clk 0:02:48]}  Qb6 {[%clk 0:02:36]} 15. Rad1 {[%clk 0:02:43]}  Qxb3 {[%clk 0:02:27]} 16. axb3 {[%clk 0:02:43]}  Bxb2 {[%clk 0:02:28]} 17. Ng5 {[%clk 0:02:42]}  Bc8 {[%clk 0:02:21]} 18. Bf3 {[%clk 0:02:31]}  Nc6 {[%clk 0:02:14]} 19. Ne4 {[%clk 0:02:30]}  Bf5 {[%clk 0:01:32]} 20. Nd6 {[%clk 0:02:25]}  Re6 {[%clk 0:01:16]} 21. Nxb7 {[%clk 0:02:24]}  Nd4 {[%clk 0:01:05]} 22. Bd5 {[%clk 0:02:22]}  Rb6 {[%clk 0:00:46]} 23. Nxc5 {[%clk 0:02:22]}  g5 {[%clk 0:00:35]} 24. Bxa8 {[%clk 0:01:52]}  Ne2+ {[%clk 0:00:30]} 25. Kh1 {[%clk 0:01:51]}  Rxh6 {[%clk 0:00:31]} 26. Bf3 {[%clk 0:01:48]}  Be5 {[%clk 0:00:30]} 27. g3 {[%clk 0:01:44]}  Nd4 {[%clk 0:00:27]} 28. Be4 {[%clk 0:01:39]}  Bg4 {[%clk 0:00:25]} 29. f3 {[%clk 0:01:39]}  Bxg3 {[%clk 0:00:23]} 30. Rxd4 {[%clk 0:01:29]}  Rxh2+ {[%clk 0:00:21]} 31. Kg1 {[%clk 0:01:29]}  Bh3 {[%clk 0:00:21]} 32. f4 {[%clk 0:01:22]}  Bxf1 {[%clk 0:00:06]} 33. Kxf1 {[%clk 0:01:20]}  Bxf4 {[%clk 0:00:06]} 34. Rd8+ {[%clk 0:01:18]}  Kg7 {[%clk 0:00:06]} 35. Rd7 {[%clk 0:01:18]}  h5 {[%clk 0:00:05]} 36. Ne6+ {[%clk 0:01:18]}  Kf6 {[%clk 0:00:05]} 37. Nxf4 {[%clk 0:01:18]}  gxf4 {[%clk 0:00:06]} 38. Bd5 {[%clk 0:01:19]}  Rb2 {[%clk 0:00:04]} 39. Rxf7+ {[%clk 0:01:17]}  Ke5 {[%clk 0:00:05]} 40. Re7+ {[%clk 0:01:14]}  Kd6 {[%clk 0:00:05]} 41. Re6+ {[%clk 0:01:14]}  Kc5 {[%clk 0:00:06]} 42. Rf6 {[%clk 0:01:14]}  Rxb3 {[%clk 0:00:06]} 43. Rxf4 {[%clk 0:01:14]}  a5 {[%clk 0:00:05]} 44. Rh4 {[%clk 0:01:14]}  a4 {[%clk 0:00:06]} 45. Rxh5 {[%clk 0:01:15]}  a3 {[%clk 0:00:06]} 46. Be4+ {[%clk 0:01:15]}  Kd4 {[%clk 0:00:04]} 47. Rh4 {[%clk 0:01:02]}  Ke3 {[%clk 0:00:02]} 48. Rh3+ {[%clk 0:01:02]}  Kxe4 {[%clk 0:00:00]} 49. Rxb3 {[%clk 0:01:02]} 1-0

[Event "January 9 Late 2024"]
[Site "https://www.chess.com"]
[Date "2024.01.10"]
[Round "9"]
[White "Sarkar, Justin"]
[Black "Nouali, Mohamed"]
[Result "0-1"]
[Board "107"]
[TimeControl "180+1"]
[WhiteFideId "2010011"]
[BlackFideId "5502462"]
[WhiteElo "2324"]
[BlackElo "2534"]
[WhiteTeam "USA"]
[BlackTeam "TUN"]
[WhiteClock "0:00:00"]
[BlackClock "0:00:13"]

1. e4 {[%clk 0:02:38]}  c5 {[%clk 0:02:40]} 2. Nf3 {[%clk 0:02:37]}  Nc6 {[%clk 0:02:39]} 3. d4 {[%clk 0:02:37]}  cxd4 {[%clk 0:02:40]} 4. Nxd4 {[%clk 0:02:36]}  g6 {[%clk 0:02:40]} 5. c4 {[%clk 0:02:34]}  Bg7 {[%clk 0:02:40]} 6. Be3 {[%clk 0:02:30]}  Nf6 {[%clk 0:02:36]} 7. Nc3 {[%clk 0:02:16]}  O-O {[%clk 0:02:20]} 8. f3 {[%clk 0:02:06]}  e6 {[%clk 0:02:11]} 9. Ndb5 {[%clk 0:01:53]}  d5 {[%clk 0:02:07]} 10. Bc5 {[%clk 0:01:04]}  dxe4 {[%clk 0:01:24]} 11. Bxf8 {[%clk 0:00:58]}  Qxf8 {[%clk 0:01:25]} 12. fxe4 {[%clk 0:00:51]}  a6 {[%clk 0:01:19]} 13. Nd6 {[%clk 0:00:46]}  Bd7 {[%clk 0:01:15]} 14. c5 {[%clk 0:00:40]}  Ne5 {[%clk 0:01:03]} 15. Be2 {[%clk 0:00:36]}  Bc6 {[%clk 0:01:02]} 16. O-O {[%clk 0:00:23]}  Rd8 {[%clk 0:01:00]} 17. Qc2 {[%clk 0:00:21]}  h5 {[%clk 0:00:57]} 18. h3 {[%clk 0:00:19]}  Rxd6 {[%clk 0:00:56]} 19. cxd6 {[%clk 0:00:18]}  Qxd6 {[%clk 0:00:57]} 20. Kh1 {[%clk 0:00:13]}  h4 {[%clk 0:00:52]} 21. Rad1 {[%clk 0:00:12]}  Qc5 {[%clk 0:00:52]} 22. Qd2 {[%clk 0:00:11]}  Nxe4 {[%clk 0:00:48]} 23. Nxe4 {[%clk 0:00:10]}  Bxe4 {[%clk 0:00:49]} 24. Qd8+ {[%clk 0:00:09]}  Bf8 {[%clk 0:00:47]} 25. Qxh4 {[%clk 0:00:09]}  Qc6 {[%clk 0:00:44]} 26. Qg3 {[%clk 0:00:07]}  Bd6 {[%clk 0:00:32]} 27. Rxd6 {[%clk 0:00:07]}  Qxd6 {[%clk 0:00:31]} 28. Rd1 {[%clk 0:00:07]}  Qc7 {[%clk 0:00:28]} 29. Qg5 {[%clk 0:00:07]}  Kg7 {[%clk 0:00:24]} 30. Qd8 {[%clk 0:00:07]}  Qc6 {[%clk 0:00:20]} 31. Qd4 {[%clk 0:00:06]}  Bxg2+ {[%clk 0:00:20]} 32. Kh2 {[%clk 0:00:06]}  f6 {[%clk 0:00:20]} 33. Rg1 {[%clk 0:00:04]}  Bf3 {[%clk 0:00:19]} 34. Qf2 {[%clk 0:00:02]}  Bxe2 {[%clk 0:00:18]} 35. Qxe2 {[%clk 0:00:02]}  Nf3+ {[%clk 0:00:18]} 36. Kh1 {[%clk 0:00:03]}  Nh4+ {[%clk 0:00:15]} 37. Kh2 {[%clk 0:00:02]}  Nf3+ {[%clk 0:00:15]} 38. Kh1 {[%clk 0:00:02]}  Nxg1+ {[%clk 0:00:14]} 39. Kxg1 {[%clk 0:00:03]}  Qc1+ {[%clk 0:00:13]} 40. Kg2 {[%clk 0:00:02]}  Qg5+ {[%clk 0:00:13]} 41. Kf2 {[%clk 0:00:00]}  Qf5+ {[%clk 0:00:13]} 0-1

[Event "January 9 Late 2024"]
[Site "https://www.chess.com"]
[Date "2024.01.09"]
[Round "9"]
[White "Abdi, Farzad"]
[Black "Martin Barcelo, Carles"]
[Result "0-1"]
[Board "111"]
[TimeControl "180+1"]
[WhiteFideId "2076829"]
[BlackFideId "24561444"]
[WhiteElo "2237"]
[BlackElo "2509"]
[WhiteTeam "USA"]
[BlackTeam "ESP"]
[WhiteClock "0:00:51"]
[BlackClock "0:01:06"]

1. d4 {[%clk 0:03:00]}  d5 {[%clk 0:02:59]} 2. c4 {[%clk 0:02:59]}  e6 {[%clk 0:02:59]} 3. Nc3 {[%clk 0:02:53]}  Bb4 {[%clk 0:02:56]} 4. Nf3 {[%clk 0:02:50]}  Nf6 {[%clk 0:02:46]} 5. e3 {[%clk 0:02:50]}  O-O {[%clk 0:02:45]} 6. Bd3 {[%clk 0:02:50]}  b6 {[%clk 0:02:46]} 7. O-O {[%clk 0:02:48]}  Bb7 {[%clk 0:02:46]} 8. a3 {[%clk 0:02:48]}  Bd6 {[%clk 0:02:46]} 9. b4 {[%clk 0:02:48]}  Nbd7 {[%clk 0:02:41]} 10. c5 {[%clk 0:02:47]}  Be7 {[%clk 0:02:42]} 11. Bb2 {[%clk 0:02:41]}  a5 {[%clk 0:02:40]} 12. Qe2 {[%clk 0:02:40]}  Ne4 {[%clk 0:02:37]} 13. Bxe4 {[%clk 0:02:35]}  dxe4 {[%clk 0:02:38]} 14. Nd2 {[%clk 0:02:35]}  f5 {[%clk 0:02:38]} 15. f3 {[%clk 0:02:28]}  exf3 {[%clk 0:02:39]} 16. gxf3 {[%clk 0:02:26]}  Nf6 {[%clk 0:02:32]} 17. Nc4 {[%clk 0:02:18]}  axb4 {[%clk 0:02:29]} 18. axb4 {[%clk 0:02:18]}  bxc5 {[%clk 0:02:20]} 19. bxc5 {[%clk 0:02:17]}  Nd5 {[%clk 0:02:21]} 20. Rxa8 {[%clk 0:02:11]}  Qxa8 {[%clk 0:02:21]} 21. Ra1 {[%clk 0:02:09]}  Nxc3 {[%clk 0:02:15]} 22. Bxc3 {[%clk 0:02:06]}  Bxf3 {[%clk 0:02:16]} 23. Rxa8 {[%clk 0:01:43]}  Bxe2 {[%clk 0:02:16]} 24. Rxf8+ {[%clk 0:01:38]}  Kxf8 {[%clk 0:02:16]} 25. Ne5 {[%clk 0:01:37]}  Bf6 {[%clk 0:02:05]} 26. Nd7+ {[%clk 0:01:35]}  Ke7 {[%clk 0:02:04]} 27. Nxf6 {[%clk 0:01:35]}  gxf6 {[%clk 0:01:56]} 28. Ba5 {[%clk 0:01:36]}  c6 {[%clk 0:01:56]} 29. Bc7 {[%clk 0:01:35]}  Kf7 {[%clk 0:01:52]} 30. Kf2 {[%clk 0:01:35]}  Bc4 {[%clk 0:01:52]} 31. Kg3 {[%clk 0:01:36]}  Kg6 {[%clk 0:01:51]} 32. Kf4 {[%clk 0:01:36]}  Bd3 {[%clk 0:01:50]} 33. Bd8 {[%clk 0:01:36]}  Be4 {[%clk 0:01:50]} 34. h4 {[%clk 0:01:35]}  Bd5 {[%clk 0:01:48]} 35. Be7 {[%clk 0:01:34]}  Bh1 {[%clk 0:01:38]} 36. Bd8 {[%clk 0:01:34]}  Bg2 {[%clk 0:01:39]} 37. Be7 {[%clk 0:01:33]}  Be4 {[%clk 0:01:39]} 38. Bd8 {[%clk 0:01:32]}  Kf7 {[%clk 0:01:40]} 39. Bc7 {[%clk 0:01:31]}  Ke7 {[%clk 0:01:40]} 40. Bd6+ {[%clk 0:01:31]}  Kd7 {[%clk 0:01:40]} 41. h5 {[%clk 0:01:27]}  Ke8 {[%clk 0:01:36]} 42. Kg3 {[%clk 0:01:21]}  Kf7 {[%clk 0:01:34]} 43. Kf4 {[%clk 0:01:21]}  Bc2 {[%clk 0:01:33]} 44. Kg3 {[%clk 0:01:20]}  Kg7 {[%clk 0:01:30]} 45. Kh4 {[%clk 0:01:18]}  Bd1 {[%clk 0:01:28]} 46. Be7 {[%clk 0:01:17]}  Kf7 {[%clk 0:01:27]} 47. Bd6 {[%clk 0:01:17]}  Ke8 {[%clk 0:01:21]} 48. Bc7 {[%clk 0:01:14]}  Kd7 {[%clk 0:01:21]} 49. Bf4 {[%clk 0:01:15]}  Be2 {[%clk 0:01:16]} 50. Bg3 {[%clk 0:01:14]}  Ke8 {[%clk 0:01:15]} 51. Bf4 {[%clk 0:01:15]}  Kf7 {[%clk 0:01:15]} 52. Bg3 {[%clk 0:01:15]}  Ke7 {[%clk 0:01:16]} 53. Bf4 {[%clk 0:01:16]}  Kf8 {[%clk 0:01:13]} 54. Bd6+ {[%clk 0:01:15]}  Kg7 {[%clk 0:01:12]} 55. Bf4 {[%clk 0:01:15]}  Bd1 {[%clk 0:01:12]} 56. Bg3 {[%clk 0:01:15]}  Kh6 {[%clk 0:01:09]} 57. Bd6 {[%clk 0:01:14]}  Bxh5 {[%clk 0:01:06]} 58. Be7 {[%clk 0:01:03]}  Kg6 {[%clk 0:01:05]} 59. Bxf6 {[%clk 0:01:02]}  Kxf6 {[%clk 0:01:03]} 60. Kxh5 {[%clk 0:01:03]}  f4 {[%clk 0:01:02]} 61. exf4 {[%clk 0:00:53]}  Kf5 {[%clk 0:01:03]} 62. Kh6 {[%clk 0:00:51]}  Kxf4 {[%clk 0:01:03]} 63. Kxh7 {[%clk 0:00:51]}  Ke4 {[%clk 0:01:03]} 64. Kg6 {[%clk 0:00:52]}  Kxd4 {[%clk 0:01:04]} 65. Kf6 {[%clk 0:00:52]}  Kxc5 {[%clk 0:01:05]} 66. Kxe6 {[%clk 0:00:51]}  Kd4 {[%clk 0:01:06]} 0-1

[Event "January 9 Late 2024"]
[Site "https://www.chess.com"]
[Date "2024.01.09"]
[Round "9"]
[White "Ardila, Oscar Humberto"]
[Black "Estrada Nieto, Julian"]
[Result "0-1"]
[Board "113"]
[TimeControl "180+1"]
[WhiteFideId "4404742"]
[BlackFideId "5101018"]
[WhiteElo "2315"]
[BlackElo "2576"]
[WhiteTeam "COL"]
[BlackTeam "ESP"]
[WhiteClock "0:00:13"]
[BlackClock "0:00:32"]

1. d4 {[%clk 0:02:55]}  Nf6 {[%clk 0:02:58]} 2. c4 {[%clk 0:02:55]}  e6 {[%clk 0:02:58]} 3. Nc3 {[%clk 0:02:55]}  Bb4 {[%clk 0:02:58]} 4. Qc2 {[%clk 0:02:55]}  O-O {[%clk 0:02:55]} 5. Bg5 {[%clk 0:02:54]}  h6 {[%clk 0:02:54]} 6. Bh4 {[%clk 0:02:54]}  d5 {[%clk 0:02:53]} 7. e3 {[%clk 0:02:54]}  b6 {[%clk 0:02:51]} 8. Nf3 {[%clk 0:02:53]}  Bb7 {[%clk 0:02:51]} 9. cxd5 {[%clk 0:02:53]}  Bxd5 {[%clk 0:02:46]} 10. Be2 {[%clk 0:02:52]}  g5 {[%clk 0:02:37]} 11. Bg3 {[%clk 0:02:51]}  Ne4 {[%clk 0:02:30]} 12. O-O {[%clk 0:02:47]}  Bxc3 {[%clk 0:02:27]} 13. bxc3 {[%clk 0:02:46]}  Nxg3 {[%clk 0:02:25]} 14. hxg3 {[%clk 0:02:45]}  Nd7 {[%clk 0:02:25]} 15. e4 {[%clk 0:02:43]}  Bb7 {[%clk 0:02:25]} 16. e5 {[%clk 0:02:42]}  c5 {[%clk 0:02:22]} 17. Qd2 {[%clk 0:02:20]}  Qe7 {[%clk 0:02:21]} 18. Nh2 {[%clk 0:02:14]}  cxd4 {[%clk 0:02:14]} 19. cxd4 {[%clk 0:02:14]}  Kg7 {[%clk 0:02:14]} 20. f4 {[%clk 0:02:13]}  f5 {[%clk 0:01:55]} 21. fxg5 {[%clk 0:02:02]}  Qxg5 {[%clk 0:01:54]} 22. Qf4 {[%clk 0:01:42]}  Rac8 {[%clk 0:01:47]} 23. Rac1 {[%clk 0:01:38]}  Qxf4 {[%clk 0:01:45]} 24. gxf4 {[%clk 0:01:39]}  Bd5 {[%clk 0:01:45]} 25. a3 {[%clk 0:01:35]}  Nb8 {[%clk 0:01:44]} 26. Bf3 {[%clk 0:01:32]}  Bc4 {[%clk 0:01:23]} 27. Rfd1 {[%clk 0:01:30]}  Rfd8 {[%clk 0:01:23]} 28. Kf2 {[%clk 0:01:29]}  Na6 {[%clk 0:01:19]} 29. Ke3 {[%clk 0:01:27]}  Bb5 {[%clk 0:01:19]} 30. Bb7 {[%clk 0:01:22]}  Rc7 {[%clk 0:01:09]} 31. Bxa6 {[%clk 0:01:19]}  Rxc1 {[%clk 0:01:09]} 32. Rxc1 {[%clk 0:01:20]}  Bxa6 {[%clk 0:01:09]} 33. Rc7+ {[%clk 0:01:20]}  Kg6 {[%clk 0:01:10]} 34. Rxa7 {[%clk 0:01:20]}  Bc4 {[%clk 0:01:10]} 35. Nf3 {[%clk 0:01:16]}  Bf1 {[%clk 0:01:02]} 36. Re7 {[%clk 0:01:11]}  Bc4 {[%clk 0:00:59]} 37. Rb7 {[%clk 0:01:03]}  b5 {[%clk 0:00:55]} 38. g3 {[%clk 0:00:52]}  Ra8 {[%clk 0:00:54]} 39. Nh4+ {[%clk 0:00:27]}  Kh5 {[%clk 0:00:53]} 40. d5 {[%clk 0:00:27]}  Rxa3+ {[%clk 0:00:49]} 41. Kd4 {[%clk 0:00:27]}  Bxd5 {[%clk 0:00:50]} 42. Rg7 {[%clk 0:00:25]}  b4 {[%clk 0:00:46]} 43. Ng6 {[%clk 0:00:15]}  Rxg3 {[%clk 0:00:44]} 44. Rg8 {[%clk 0:00:14]}  Rxg6 {[%clk 0:00:43]} 45. Rb8 {[%clk 0:00:14]}  Rg4 {[%clk 0:00:43]} 46. Ke3 {[%clk 0:00:14]}  b3 {[%clk 0:00:42]} 47. Rb6 {[%clk 0:00:12]}  Rg3+ {[%clk 0:00:41]} 48. Kd4 {[%clk 0:00:12]}  Rf3 {[%clk 0:00:40]} 49. Kc5 {[%clk 0:00:12]}  Rxf4 {[%clk 0:00:39]} 50. Kd6 {[%clk 0:00:12]}  Re4 {[%clk 0:00:37]} 51. Ke7 {[%clk 0:00:12]}  f4 {[%clk 0:00:37]} 52. Kf6 {[%clk 0:00:13]}  f3 {[%clk 0:00:36]} 53. Rb8 {[%clk 0:00:12]}  f2 {[%clk 0:00:36]} 54. Rg8 {[%clk 0:00:12]}  f1=Q+ {[%clk 0:00:32]} 55. Ke7 {[%clk 0:00:13]} 0-1

[Event "January 9 Late 2024"]
[Site "https://www.chess.com"]
[Date "2024.01.09"]
[Round "9"]
[White "Kujawski, Adam"]
[Black "Peycheva, Gergana"]
[Result "0-1"]
[Board "116"]
[TimeControl "180+1"]
[WhiteFideId "1100920"]
[BlackFideId "2916711"]
[WhiteElo "2294"]
[BlackElo "2441"]
[WhiteTeam "POL"]
[BlackTeam "BUL"]
[WhiteClock "0:00:00"]
[BlackClock "0:00:42"]

1. e4 {[%clk 0:03:00]}  c6 {[%clk 0:02:59]} 2. d4 {[%clk 0:03:00]}  d5 {[%clk 0:02:59]} 3. f3 {[%clk 0:03:00]}  dxe4 {[%clk 0:02:54]} 4. fxe4 {[%clk 0:03:01]}  e6 {[%clk 0:02:43]} 5. Nf3 {[%clk 0:03:00]}  Nf6 {[%clk 0:02:43]} 6. e5 {[%clk 0:02:45]}  Nd5 {[%clk 0:02:42]} 7. Bd3 {[%clk 0:02:44]}  c5 {[%clk 0:02:39]} 8. Nc3 {[%clk 0:02:28]}  Nc6 {[%clk 0:02:32]} 9. O-O {[%clk 0:02:02]}  cxd4 {[%clk 0:02:30]} 10. Ne4 {[%clk 0:01:58]}  Be7 {[%clk 0:02:12]} 11. Qe1 {[%clk 0:01:51]}  O-O {[%clk 0:02:00]} 12. Qg3 {[%clk 0:01:50]}  f5 {[%clk 0:01:18]} 13. exf6 {[%clk 0:01:32]}  Nxf6 {[%clk 0:01:18]} 14. Bh6 {[%clk 0:01:23]}  Nh5 {[%clk 0:01:16]} 15. Qg4 {[%clk 0:01:21]}  Qe8 {[%clk 0:01:13]} 16. Nfg5 {[%clk 0:00:42]}  e5 {[%clk 0:00:55]} 17. Bc4+ {[%clk 0:00:20]}  Kh8 {[%clk 0:00:55]} 18. Ne6 {[%clk 0:00:06]}  Rxf1+ {[%clk 0:00:41]} 19. Rxf1 {[%clk 0:00:00]}  gxh6 {[%clk 0:00:42]} 0-1

[Event "January 9 Late 2024"]
[Site "https://www.chess.com"]
[Date "2024.01.09"]
[Round "9"]
[White "Mazurkiewicz, Michal"]
[Black "Eggleston, Thomas A"]
[Result "0-1"]
[Board "118"]
[TimeControl "180+1"]
[WhiteFideId "1124943"]
[BlackFideId "412139"]
[WhiteElo "2435"]
[BlackElo "2269"]
[WhiteTeam "POL"]
[BlackTeam "ENG"]
[WhiteClock "0:00:00"]
[BlackClock "0:00:25"]

1. e4 {[%clk 0:03:00]}  e6 {[%clk 0:03:00]} 2. d3 {[%clk 0:03:00]}  c5 {[%clk 0:02:59]} 3. Nf3 {[%clk 0:03:00]}  Nc6 {[%clk 0:02:59]} 4. g3 {[%clk 0:03:00]}  g6 {[%clk 0:02:59]} 5. Bg2 {[%clk 0:03:00]}  Bg7 {[%clk 0:02:59]} 6. O-O {[%clk 0:03:01]}  Nge7 {[%clk 0:03:00]} 7. Re1 {[%clk 0:03:01]}  d6 {[%clk 0:03:00]} 8. c3 {[%clk 0:03:01]}  e5 {[%clk 0:02:58]} 9. h3 {[%clk 0:03:00]}  O-O {[%clk 0:02:57]} 10. Na3 {[%clk 0:03:00]}  h6 {[%clk 0:02:55]} 11. Nc2 {[%clk 0:02:56]}  d5 {[%clk 0:02:48]} 12. Ne3 {[%clk 0:02:50]}  d4 {[%clk 0:02:46]} 13. cxd4 {[%clk 0:02:50]}  cxd4 {[%clk 0:02:46]} 14. Nc4 {[%clk 0:02:49]}  b5 {[%clk 0:02:45]} 15. Ncd2 {[%clk 0:02:47]}  Be6 {[%clk 0:02:44]} 16. Nb3 {[%clk 0:02:46]}  Qd6 {[%clk 0:02:40]} 17. Bd2 {[%clk 0:02:34]}  Nb4 {[%clk 0:02:31]} 18. Bxb4 {[%clk 0:02:06]}  Qxb4 {[%clk 0:02:30]} 19. Qd2 {[%clk 0:02:06]}  Qd6 {[%clk 0:02:26]} 20. Rec1 {[%clk 0:01:56]}  Rfc8 {[%clk 0:02:24]} 21. Qa5 {[%clk 0:01:40]}  a6 {[%clk 0:02:08]} 22. Nfd2 {[%clk 0:01:25]}  Bf8 {[%clk 0:01:39]} 23. a4 {[%clk 0:01:04]}  Nc6 {[%clk 0:01:33]} 24. Qb6 {[%clk 0:01:04]}  bxa4 {[%clk 0:01:14]} 25. Rxa4 {[%clk 0:00:41]}  a5 {[%clk 0:01:12]} 26. Nc4 {[%clk 0:00:32]}  Qe7 {[%clk 0:00:58]} 27. Nbxa5 {[%clk 0:00:10]}  Nb4 {[%clk 0:00:53]} 28. b3 {[%clk 0:00:08]}  Rab8 {[%clk 0:00:50]} 29. Rxb4 {[%clk 0:00:03]}  Qxb4 {[%clk 0:00:36]} 30. Qxb4 {[%clk 0:00:03]}  Bxb4 {[%clk 0:00:36]} 31. f4 {[%clk 0:00:04]}  Bxa5 {[%clk 0:00:34]} 32. Ra1 {[%clk 0:00:03]}  Bxc4 {[%clk 0:00:33]} 33. bxc4 {[%clk 0:00:03]}  Bd2 {[%clk 0:00:29]} 34. f5 {[%clk 0:00:03]}  Be3+ {[%clk 0:00:29]} 35. Kh2 {[%clk 0:00:04]}  g5 {[%clk 0:00:28]} 36. Bf3 {[%clk 0:00:03]}  Ra8 {[%clk 0:00:27]} 37. Rb1 {[%clk 0:00:03]}  Rcb8 {[%clk 0:00:27]} 38. Rd1 {[%clk 0:00:02]}  Ra2+ {[%clk 0:00:25]} 39. Kh1 {[%clk 0:00:00]}  Rbb2 {[%clk 0:00:25]} 0-1

[Event "January 9 Late 2024"]
[Site "https://www.chess.com"]
[Date "2024.01.09"]
[Round "9"]
[White "Ferriz Barrios, Andres"]
[Black "Toktomushev, Teimur"]
[Result "0-1"]
[Board "119"]
[TimeControl "180+1"]
[WhiteFideId "5104467"]
[BlackFideId "14176726"]
[WhiteElo "2254"]
[BlackElo "2431"]
[WhiteTeam "MEX"]
[BlackTeam "UKR"]
[WhiteClock "0:02:00"]
[BlackClock "0:01:05"]

1. d4 {[%clk 0:03:00]}  d5 {[%clk 0:02:44]} 2. Nf3 {[%clk 0:03:00]}  Nf6 {[%clk 0:02:39]} 3. Nbd2 {[%clk 0:02:59]}  c5 {[%clk 0:02:38]} 4. e3 {[%clk 0:02:59]}  Nc6 {[%clk 0:02:39]} 5. c3 {[%clk 0:02:59]}  Bg4 {[%clk 0:02:39]} 6. Be2 {[%clk 0:02:59]}  e6 {[%clk 0:02:39]} 7. Ne5 {[%clk 0:02:58]}  Nxe5 {[%clk 0:02:35]} 8. dxe5 {[%clk 0:02:59]}  Bxe2 {[%clk 0:02:35]} 9. Qxe2 {[%clk 0:02:56]}  Nd7 {[%clk 0:02:36]} 10. f4 {[%clk 0:02:56]}  f6 {[%clk 0:02:32]} 11. exf6 {[%clk 0:02:52]}  Nxf6 {[%clk 0:02:33]} 12. O-O {[%clk 0:02:52]}  Bd6 {[%clk 0:02:33]} 13. e4 {[%clk 0:02:52]}  Bc7 {[%clk 0:02:24]} 14. e5 {[%clk 0:02:49]}  Nd7 {[%clk 0:02:22]} 15. f5 {[%clk 0:02:45]}  O-O {[%clk 0:02:16]} 16. fxe6 {[%clk 0:02:44]}  Rxf1+ {[%clk 0:02:14]} 17. Nxf1 {[%clk 0:02:45]}  Nxe5 {[%clk 0:02:15]} 18. Bf4 {[%clk 0:02:43]}  Qf6 {[%clk 0:02:11]} 19. Bxe5 {[%clk 0:02:43]}  Qxe5 {[%clk 0:01:56]} 20. Re1 {[%clk 0:02:41]}  Qxe2 {[%clk 0:01:54]} 21. Rxe2 {[%clk 0:02:42]}  Re8 {[%clk 0:01:54]} 22. g3 {[%clk 0:02:41]}  Kf8 {[%clk 0:01:52]} 23. Nd2 {[%clk 0:02:38]}  Ke7 {[%clk 0:01:50]} 24. Nf1 {[%clk 0:02:26]}  Kd6 {[%clk 0:01:46]} 25. Ne3 {[%clk 0:02:26]}  Rxe6 {[%clk 0:01:26]} 26. Nf5+ {[%clk 0:02:25]}  Kd7 {[%clk 0:01:26]} 27. Rd2 {[%clk 0:02:23]}  Re5 {[%clk 0:01:20]} 28. Nxg7 {[%clk 0:02:20]}  Rg5 {[%clk 0:01:18]} 29. Kg2 {[%clk 0:02:13]}  Rxg7 {[%clk 0:01:15]} 30. Rxd5+ {[%clk 0:02:13]}  Kc6 {[%clk 0:01:16]} 31. Rh5 {[%clk 0:02:12]}  Rd7 {[%clk 0:01:16]} 32. Kh3 {[%clk 0:02:12]}  b5 {[%clk 0:01:16]} 33. b4 {[%clk 0:02:12]}  c4 {[%clk 0:01:14]} 34. Rc5+ {[%clk 0:02:10]}  Kb6 {[%clk 0:01:14]} 35. Rh5 {[%clk 0:02:08]}  Rd3 {[%clk 0:01:07]} 36. Rh6+ {[%clk 0:02:08]}  Bd6 {[%clk 0:01:05]} 37. Rxh7 {[%clk 0:02:05]}  Rxc3 {[%clk 0:01:04]} 38. Rh6 {[%clk 0:02:06]}  Rd3 {[%clk 0:01:04]} 39. Kg4 {[%clk 0:02:06]}  c3 {[%clk 0:01:05]} 40. Rh8 {[%clk 0:02:00]}  c2 {[%clk 0:01:05]} 0-1

[Event "January 9 Late 2024"]
[Site "https://www.chess.com"]
[Date "2024.01.09"]
[Round "9"]
[White "Korol, Dimitry"]
[Black "Figorito, Nick"]
[Result "0-1"]
[Board "122"]
[TimeControl "180+1"]
[WhiteFideId "14108003"]
[BlackFideId "30923689"]
[WhiteElo "2339"]
[BlackElo "2402"]
[WhiteTeam "UKR"]
[BlackTeam "USA"]
[WhiteClock "0:00:00"]
[BlackClock "0:00:35"]

1. d4 {[%clk 0:03:00]}  Nf6 {[%clk 0:02:59]} 2. c4 {[%clk 0:03:01]}  g6 {[%clk 0:03:00]} 3. Nc3 {[%clk 0:03:01]}  d5 {[%clk 0:03:01]} 4. cxd5 {[%clk 0:03:01]}  Nxd5 {[%clk 0:03:02]} 5. e4 {[%clk 0:03:01]}  Nxc3 {[%clk 0:03:02]} 6. bxc3 {[%clk 0:03:02]}  Bg7 {[%clk 0:03:03]} 7. Nf3 {[%clk 0:03:03]}  c5 {[%clk 0:03:04]} 8. Rb1 {[%clk 0:03:03]}  O-O {[%clk 0:03:01]} 9. Be2 {[%clk 0:03:03]}  cxd4 {[%clk 0:03:01]} 10. cxd4 {[%clk 0:03:04]}  Qa5+ {[%clk 0:03:01]} 11. Qd2 {[%clk 0:03:04]}  Qxd2+ {[%clk 0:03:01]} 12. Bxd2 {[%clk 0:03:05]}  b6 {[%clk 0:03:02]} 13. O-O {[%clk 0:03:04]}  Ba6 {[%clk 0:03:02]} 14. Bxa6 {[%clk 0:02:57]}  Nxa6 {[%clk 0:03:03]} 15. Rfc1 {[%clk 0:02:53]}  Rfc8 {[%clk 0:03:02]} 16. Kf1 {[%clk 0:02:39]}  Kf8 {[%clk 0:03:01]} 17. Ke2 {[%clk 0:02:39]}  Ke8 {[%clk 0:02:59]} 18. Kd3 {[%clk 0:02:32]}  Kd7 {[%clk 0:02:39]} 19. a4 {[%clk 0:02:05]}  h6 {[%clk 0:02:34]} 20. g4 {[%clk 0:01:55]}  Rxc1 {[%clk 0:02:34]} 21. Rxc1 {[%clk 0:01:55]}  Rc8 {[%clk 0:02:33]} 22. Rxc8 {[%clk 0:01:54]}  Kxc8 {[%clk 0:02:34]} 23. Kc4 {[%clk 0:01:43]}  Nc7 {[%clk 0:02:26]} 24. d5 {[%clk 0:01:30]}  a6 {[%clk 0:02:17]} 25. h4 {[%clk 0:01:02]}  Kb7 {[%clk 0:02:02]} 26. Bb4 {[%clk 0:00:36]}  b5+ {[%clk 0:01:52]} 27. axb5 {[%clk 0:00:36]}  axb5+ {[%clk 0:01:53]} 28. Kc5 {[%clk 0:00:11]}  Bf8 {[%clk 0:01:21]} 29. Ba5 {[%clk 0:00:07]}  e6+ {[%clk 0:01:10]} 30. d6 {[%clk 0:00:07]}  b4 {[%clk 0:00:45]} 31. Bxc7 {[%clk 0:00:05]}  b3 {[%clk 0:00:46]} 32. Nd2 {[%clk 0:00:05]}  b2 {[%clk 0:00:46]} 33. e5 {[%clk 0:00:04]}  g5 {[%clk 0:00:42]} 34. h5 {[%clk 0:00:04]}  Bg7 {[%clk 0:00:35]} 35. Kd4 {[%clk 0:00:02]}  f6 {[%clk 0:00:35]} 36. Ke4 {[%clk 0:00:00]}  fxe5 {[%clk 0:00:35]} 0-1